Departmental Area,Entity,Payment Date,Expense type,Expense Area,Supplier Name,Payment Reference,     Invoice Distribution Amount     ,Description,Supplier Type,Expenditure Type
UK Statistics Family,Office for National Statistics,01/12/2022,Travel And Subsistence,Corporate Centre,Corporate Travel Management ,248897,26623.5,Travel and Accommodation,SME,Programme Expenditure
UK Statistics Family,Office for National Statistics,01/12/2022,Exp - Purchase Of Goods/Services - IT Contractual Services,PARTNERSHIP DEVELOPMENT,CTS (Cloud Technology Solutions Ltd),248905,"150,374.40",Information Management Services,Large,Programme Expenditure
UK Statistics Family,Office for National Statistics,01/12/2022,Purchase of Goods and Services - Training,Data As A Service,CTS (Cloud Technology Solutions Ltd),248905,"12,780.00",Information Management Services,Large,Programme Expenditure
UK Statistics Family,Office for National Statistics,01/12/2022,IT (Owned) At Cost - Additions,PROPERTY LONDON 2MS,Orange box Limited,248914,"97,454.92",Office Furniture,SME,Programme Expenditure
UK Statistics Family,Office for National Statistics,01/12/2022,Exp - Purchase Of Goods And Services Consultants,Policy Secretariat,Parity Resources Limited,248915,740.11,Information Management Services,Large,Programme Expenditure
UK Statistics Family,Office for National Statistics,01/12/2022,Exp - Short-Term Contract & Agency Staff - Full Cost,Recruitment ,Parity Resources Limited,248915,271.80,Information Management Services,Large,Programme Expenditure
UK Statistics Family,Office for National Statistics,01/12/2022,Exp - Purchase Of Goods/Services - Contractors,CDIO UNGP,Parity Resources Limited,248915,"4,600.50",Information Management Services,Large,Programme Expenditure
UK Statistics Family,Office for National Statistics,01/12/2022,Exp - Purchase Of Goods/Services - Contractors,Strategy And Architecture,Parity Resources Limited,248915,7578.9,Information Management Services,Large,Programme Expenditure
UK Statistics Family,Office for National Statistics,01/12/2022,Exp - Purchase Of Goods/Services - Contractors,Tech Delivery Legacy Sp,Parity Resources Limited,248915,"2,699.22",Information Management Services,Large,Programme Expenditure
UK Statistics Family,Office for National Statistics,01/12/2022,Exp - Purchase Of Goods/Services - Contractors,Tech Delivery Next Gen IT And Infrastructure,Parity Resources Limited,248915,"8,421.00",Information Management Services,Large,Programme Expenditure
UK Statistics Family,Office for National Statistics,01/12/2022,Exp - Purchase Of Goods/Services - Contractors,IT Operations,Parity Resources Limited,248915,"4,970.70",Information Management Services,Large,Programme Expenditure
UK Statistics Family,Office for National Statistics,01/12/2022,EXP - PURCHASE OF GOODS/SERVICES - DATA ACQUISITION,Prices Division,Mintel Group Ltd,248916,"44,527.23",Data Acquisition,Large,Programme Expenditure
UK Statistics Family,Office for National Statistics,01/12/2022,Exp - Purchase Of Goods/Services - IT Contractual Services,Tech Delivery Next Gen IT And Infrastructure,Ceox Services Ltd,248919,"31,779.77",Information Management Services,Large,Programme Expenditure
UK Statistics Family,Office for National Statistics,02/12/2022,Exp - Purchase Of Goods/Services - IT Contractual Services,CDIO UNGP,CTS (Cloud Technology Solutions Ltd),249034,"105,300.00",Information Management Services,Large,Programme Expenditure
UK Statistics Family,Office for National Statistics,02/12/2022,Exp - Purchase Of Goods/Services - Incentive Payments,Covid Infection Survey,Sodexo Motivation Solutions U.K. ltd,249035,"79,940.40",Survey Response Incentive Vouchers,Large,Programme Expenditure
UK Statistics Family,Office for National Statistics,02/12/2022,Postage,Interviewer Support,Banner Group Ltd,249036,"68,000.00",Postage  ,SME,Programme Expenditure
UK Statistics Family,Office for National Statistics,02/12/2022,Exp - Short-Term Contract & Agency Staff - Full Cost,Beyond 2021 Research And Design,Talent International,249037,"3,511.97",Information Management Services,SME,Programme Expenditure
UK Statistics Family,Office for National Statistics,02/12/2022,Exp - Purchase Of Goods/Services - Contractors,Digital Media,Talent International,249037,"15,390.00",Information Management Services,SME,Programme Expenditure
UK Statistics Family,Office for National Statistics,02/12/2022,Exp - Purchase Of Goods/Services - Contractors,Data Architecture,Talent International,249037,"19,199.76",Information Management Services,SME,Programme Expenditure
UK Statistics Family,Office for National Statistics,02/12/2022,Exp - Purchase Of Goods/Services - Contractors,IT Applications,Talent International,249037,780.00,Information Management Services,SME,Programme Expenditure
UK Statistics Family,Office for National Statistics,02/12/2022,Exp - Purchase Of Goods And Services Consultants,"SUB-NATIONAL STATISTICS AND ANALYSIS
",Matt Hamnet & Associates Ltd,249038,"90,065.48",Consultancy,SME,Programme Expenditure
UK Statistics Family,Office for National Statistics,05/12/2022,Exp - Purchase Of Goods/Services - Contractors,CDIO UNGP,LA FOSSE ASSOCIATES LIMITED,249180,"23,490.00",Information Management Services,Large,Programme Expenditure
UK Statistics Family,Office for National Statistics,05/12/2022,Exp - Purchase Of Goods/Services - Contractors,Strategy And Architecture,LA FOSSE ASSOCIATES LIMITED,249180,"8,601.60",Information Management Services,Large,Programme Expenditure
UK Statistics Family,Office for National Statistics,05/12/2022,Exp - Short-Term Contract & Agency Staff - Full Cost,Data Architecture,SmartSourcing Ltd,249181,"2,783.88",Information Management Services,SME,Programme Expenditure
UK Statistics Family,Office for National Statistics,05/12/2022,Exp - Purchase Of Goods/Services - Contractors,Data Architecture,SmartSourcing Ltd,249181,"33,451.01",Information Management Services,SME,Programme Expenditure
UK Statistics Family,Office for National Statistics,05/12/2022,Exp - Purchase Of Goods/Services - Contractors,IT Operations,SmartSourcing Ltd,249181,"14,984.64",Information Management Services,SME,Programme Expenditure
UK Statistics Family,Office for National Statistics,05/12/2022,"ICT Outsourcing, Maintenance And Support",Researcher Support And Data Access ,Boxxe Ltd,249184,"54,290.40",Information Management Services,SME,Programme Expenditure
UK Statistics Family,Office for National Statistics,05/12/2022,Exp - Purchase Of Goods/Services - Contractors,Data Architecture,Talent International,249185,"20,400.00",Information Management Services,SME,Programme Expenditure
UK Statistics Family,Office for National Statistics,05/12/2022,Exp - Purchase Of Goods/Services - Contractors,Data Architecture,Talent International,249185,"30,570.00",Information Management Services,SME,Programme Expenditure
UK Statistics Family,Office for National Statistics,05/12/2022,Exp - Purchase Of Goods/Services - Contractors,DATA ENGINEERING OPERATIONS AND DELIVERY,Talent International,249185,16200,Information Management Services,SME,Programme Expenditure
UK Statistics Family,Office for National Statistics,05/12/2022,Telecoms,IT Operations,Bt Global Services,249190,51984,Telecommunications,Large,Programme Expenditure
UK Statistics Family,Office for National Statistics,05/12/2022,Exp - Purchase Of Goods/Services - Contractors,Data Architecture,La International,249192,24339.48,Information Management Services,SME,Programme Expenditure
UK Statistics Family,Office for National Statistics,05/12/2022,Exp - Purchase Of Goods/Services - Contractors,Data Architecture,La International,249192,"4,281.18",Information Management Services,SME,Programme Expenditure
UK Statistics Family,Office for National Statistics,05/12/2022,Exp - Purchase Of Goods/Services - Contractors,IT Operations,La International,249192,"2,065.60",Information Management Services,SME,Programme Expenditure
UK Statistics Family,Office for National Statistics,06/12/2022,Exp - Short-Term Contract & Agency Staff - Full Cost,Covid Infection Survey,Malikshaw Interim & Executive,249433,"5,157.77",Information Management Services,SME,Programme Expenditure
UK Statistics Family,Office for National Statistics,06/12/2022,Exp - Purchase Of Goods/Services - Contractors,CDIO UNGP,Malikshaw Interim & Executive,249433,"16,380.00",Information Management Services,SME,Programme Expenditure
UK Statistics Family,Office for National Statistics,06/12/2022,Exp - Purchase Of Goods/Services - Contractors,IT Operations,Malikshaw Interim & Executive,249433,"19,747.20",Information Management Services,SME,Programme Expenditure
UK Statistics Family,Office for National Statistics,06/12/2022,Hosting,CLOUD ARCHITECTURE,Amazon Web Services Inc,249434,121279.23,Information Management Services,Large,Programme Expenditure
UK Statistics Family,Office for National Statistics,06/12/2022,Hosting,CDIO UNGP,Amazon Web Services Inc,249434,575.86,Information Management Services,Large,Programme Expenditure
UK Statistics Family,Office for National Statistics,06/12/2022,Exp - Purchase Of Goods/Services - Contractors,Planning And Info Governance,Robertson Bell,249435,"29,280.00",Information Management Services,SME,Programme Expenditure
UK Statistics Family,Office for National Statistics,06/12/2022,Other Goods And Services,Ask Business Services,VITALITY CORPORATE SERVICES LIMITED,249437,"31,185.84",Insurance Services,SME,Programme Expenditure
UK Statistics Family,Office for National Statistics,06/12/2022,Exp - Purchase Of Goods/Services - Contractors,Security Advisory,Talent International,249440,"17,999.76",Information Management Services,SME,Programme Expenditure
UK Statistics Family,Office for National Statistics,06/12/2022,Exp - Short-Term Contract & Agency Staff - Full Cost,Data Management Audit And Compliance,Talent International,249440,"3,203.90",Information Management Services,SME,Programme Expenditure
UK Statistics Family,Office for National Statistics,06/12/2022,Exp - Purchase Of Goods/Services - Contractors,Data Architecture,Talent International,249440,"17,280.00",Information Management Services,SME,Programme Expenditure
UK Statistics Family,Office for National Statistics,06/12/2022,Exp - Purchase Of Goods/Services - Contractors,Tech Delivery Next Gen IT And Infrastructure,Talent International,249440,"17,526.60",Information Management Services,SME,Programme Expenditure
UK Statistics Family,Office for National Statistics,06/12/2022,Exp - Purchase Of Goods/Services - Contractors,IT Operations,Talent International,249440,"1,800.00",Information Management Services,SME,Programme Expenditure
UK Statistics Family,Office for National Statistics,07/12/2022,IT (Owned) At Cost - Additions,IT Operations,Scc,249614,"30,223.94",Software Licenses,Large,Programme Expenditure
UK Statistics Family,Office for National Statistics,07/12/2022,"ICT Outsourcing, Maintenance And Support",IT Operations,Scc,249614,"28,240.62",Equipment Maintenance and Suuport,Large,Programme Expenditure
UK Statistics Family,Office for National Statistics,07/12/2022,Exp - Purchase Of Goods/Services - IT Contractual Services,CDIO UNGP,CTS (Cloud Technology Solutions Ltd),249617,"40,152.00",Information Management Services,Large,Programme Expenditure
UK Statistics Family,Office for National Statistics,07/12/2022,Exp - Purchase Of Goods/Services - Contractors,Testing,LA FOSSE ASSOCIATES LIMITED,249618,19200,Information Management Services,Large,Programme Expenditure
UK Statistics Family,Office for National Statistics,07/12/2022,Exp - Purchase Of Goods/Services - Contractors,Consultancy Management,LA FOSSE ASSOCIATES LIMITED,249618,"14,399.76",Information Management Services,Large,Programme Expenditure
UK Statistics Family,Office for National Statistics,07/12/2022,Exp - Purchase Of Goods/Services - Contractors,Consultancy Management,LA FOSSE ASSOCIATES LIMITED,249618,"12,000.00",Information Management Services,Large,Programme Expenditure
UK Statistics Family,Office for National Statistics,07/12/2022,Exp - Purchase Of Goods/Services - Contractors,Data Architecture,LA FOSSE ASSOCIATES LIMITED,249618,"14,400.00",Information Management Services,Large,Programme Expenditure
UK Statistics Family,Office for National Statistics,07/12/2022,Exp - Purchase Of Goods/Services - Contractors,Tech Delivery Legacy Sp,LA FOSSE ASSOCIATES LIMITED,249618,"18,000.00",Information Management Services,Large,Programme Expenditure
UK Statistics Family,Office for National Statistics,07/12/2022,Exp - Purchase Of Goods/Services - IT Contractual Services,Digital Delivery,Armakuni Ltd,249619,"45,540.00",Information Management Services,SME,Programme Expenditure
UK Statistics Family,Office for National Statistics,07/12/2022,Other Goods And Services,ONS Corporate Funds,Edenred (UK Group) Limited,249620,"55,100.00",Performance Reward Vouchers,Large,Programme Expenditure
UK Statistics Family,Office for National Statistics,07/12/2022,IT (Owned) At Cost - Additions,PROPERTY LONDON 2MS,Orange box Limited,249621,"28,689.34",Office Furniture,SME,Programme Expenditure
UK Statistics Family,Office for National Statistics,07/12/2022,Rent Payable,Property Titchfield,Government Property Agency (GPA),249626,"343,619.50",Rental Charges,Large,Programme Expenditure
UK Statistics Family,Office for National Statistics,07/12/2022,Rent Payable,Property Christchurch,Government Property Agency (GPA),249626,57395,Rental Charges,Large,Programme Expenditure
UK Statistics Family,Office for National Statistics,08/12/2022,Exp - Purchase Of Goods/Services - IT Contractual Services,CDIO UNGP,Microsoft Limited,249772,"158,493.00",Information Management Services,Large,Programme Expenditure
UK Statistics Family,Office for National Statistics,08/12/2022,Capital Major Works >25K,Property Newport,Intellectual Property Office,249773,"58,564.15",On-site Maintenance,Large,Programme Expenditure
UK Statistics Family,Office for National Statistics,08/12/2022,Capital Major Works >25K,Property Newport,Intellectual Property Office,249773,"24,000.00",On-site Maintenance,Large,Programme Expenditure
UK Statistics Family,Office for National Statistics,08/12/2022,Exp - Purchase Of Goods/Services - Accommodation & Bldng Management - Grounds Maint Fixed Fee,Property Newport,Intellectual Property Office,249773,646.23,On-site Maintenance,Large,Programme Expenditure
UK Statistics Family,Office for National Statistics,08/12/2022,Exp - Purchase Of Goods/Services - IT Contractual Services,PARTNERSHIP DEVELOPMENT,Sas Software Ltd,249774,"715,800.00",Software Licenses,Large,Programme Expenditure
UK Statistics Family,Office for National Statistics,08/12/2022,Exp - Purchase Of Goods/Services - Other ICT Costs Software,Finance,Scc,249777,"154,286.88",Software Licenses,Large,Programme Expenditure
UK Statistics Family,Office for National Statistics,08/12/2022,Exp - Purchase Of Goods/Services - IT Contractual Services,IT Operations,Ibm United Kingdom Ltd,249779,"105,491.28",Information Management Services,Large,Programme Expenditure
UK Statistics Family,Office for National Statistics,08/12/2022,Exp - Purchase Of Goods/Services - IT Contractual Services,IT Operations,Ibm United Kingdom Ltd,249779,"83,733.60",Information Management Services,Large,Programme Expenditure
UK Statistics Family,Office for National Statistics,08/12/2022,Travel And Subsistence,Corporate Centre,Corporate Travel Management ,249782,"59,664.64",Travel and Accommodation,SME,Programme Expenditure
UK Statistics Family,Office for National Statistics,08/12/2022,Exp - Purchase Of Goods/Services - Contractors,Testing,La International,249787,"9,419.93",Information Management Services,SME,Programme Expenditure
UK Statistics Family,Office for National Statistics,08/12/2022,Exp - Purchase Of Goods/Services - Contractors,Testing,La International,249787,"3,317.65",Information Management Services,SME,Programme Expenditure
UK Statistics Family,Office for National Statistics,08/12/2022,Exp - Purchase Of Goods/Services - Contractors,Consultancy Management,La International,249787,"3,681.18",Information Management Services,SME,Programme Expenditure
UK Statistics Family,Office for National Statistics,08/12/2022,Exp - Purchase Of Goods/Services - Contractors,Security And Information Management Saim,La International,249787,"22,230.00",Information Management Services,SME,Programme Expenditure
UK Statistics Family,Office for National Statistics,08/12/2022,Exp - Purchase Of Goods/Services - Contractors,Data Architecture,La International,249787,"12,014.46",Information Management Services,SME,Programme Expenditure
UK Statistics Family,Office for National Statistics,08/12/2022,Exp - Purchase Of Goods/Services - Contractors,Data Architecture,La International,249787,"4,281.18",Information Management Services,SME,Programme Expenditure
UK Statistics Family,Office for National Statistics,08/12/2022,Exp - Purchase Of Goods/Services - Contractors,CLOUD ARCHITECTURE,La International,249787,"16,660.08",Information Management Services,SME,Programme Expenditure
UK Statistics Family,Office for National Statistics,08/12/2022,Exp - Purchase Of Goods/Services - Contractors,IT Applications,La International,249787,"7,464.66",Information Management Services,SME,Programme Expenditure
UK Statistics Family,Office for National Statistics,08/12/2022,Hosting,CLOUD ARCHITECTURE,CTS (Cloud Technology Solutions Ltd),249796,"186,923.48",Information Management Services,Large,Programme Expenditure
UK Statistics Family,Office for National Statistics,08/12/2022,Exp - Purchase Of Goods/Services - IT Contractual Services,IT Applications,Diegesis Limited,249802,"204,510.00",Information Management Services,Large,Programme Expenditure
UK Statistics Family,Office for National Statistics,08/12/2022,Exp - Purchase Of Goods/Services - Incentive Payments,Survey Management,Banner Group Ltd,249807,"263,914.28",Survey Response Incentive Items,SME,Programme Expenditure
UK Statistics Family,Office for National Statistics,08/12/2022,Specialist User Software And Hardware,Security Operations,SKILLSOFT UK LIMITED,249808,"47,570.69",Software Licenses,Large,Programme Expenditure
UK Statistics Family,Office for National Statistics,08/12/2022,"ICT Outsourcing, Maintenance And Support",Researcher Support And Data Access ,Equiniti-TopLevel,249809,"29,160.00",Information Management Services,SME,Programme Expenditure
UK Statistics Family,Office for National Statistics,08/12/2022,Exp - Purchase Of Goods/Services - Contractors,Programme Support,Parity Resources Limited,249810,"7,200.00",Information Management Services,Large,Programme Expenditure
UK Statistics Family,Office for National Statistics,08/12/2022,Exp - Purchase Of Goods/Services - Contractors,Business Architecture Transformation And Statistical Strategy,Parity Resources Limited,249810,"1,437.02",Information Management Services,Large,Programme Expenditure
UK Statistics Family,Office for National Statistics,08/12/2022,Exp - Short-Term Contract & Agency Staff - Full Cost,Recruitment ,Parity Resources Limited,249810,"1,509.60",Information Management Services,Large,Programme Expenditure
UK Statistics Family,Office for National Statistics,08/12/2022,Exp - Purchase Of Goods/Services - Contractors,Security Advisory,Parity Resources Limited,249810,"30,373.50",Information Management Services,Large,Programme Expenditure
UK Statistics Family,Office for National Statistics,08/12/2022,Exp - Purchase Of Goods/Services - Contractors,Data Architecture,Parity Resources Limited,249810,"4,810.50",Information Management Services,Large,Programme Expenditure
UK Statistics Family,Office for National Statistics,08/12/2022,Exp - Purchase Of Goods/Services - Contractors,CDIO UNGP,Parity Resources Limited,249810,"4,600.50",Information Management Services,Large,Programme Expenditure
UK Statistics Family,Office for National Statistics,08/12/2022,Exp - Purchase Of Goods/Services - Contractors,Strategy And Architecture,Parity Resources Limited,249810,"3,368.40",Information Management Services,Large,Programme Expenditure
UK Statistics Family,Office for National Statistics,08/12/2022,Exp - Purchase Of Goods/Services - Contractors,Tech Delivery Legacy Sp,Parity Resources Limited,249810,"2,429.30",Information Management Services,Large,Programme Expenditure
UK Statistics Family,Office for National Statistics,08/12/2022,Exp - Purchase Of Goods/Services - Contractors,Tech Delivery Next Gen IT And Infrastructure,Parity Resources Limited,249810,"22,316.70",Information Management Services,Large,Programme Expenditure
UK Statistics Family,Office for National Statistics,08/12/2022,Exp - Purchase Of Goods/Services - Contractors,IT Applications,Parity Resources Limited,249810,10893.6,Information Management Services,Large,Programme Expenditure
UK Statistics Family,Office for National Statistics,08/12/2022,Exp - Purchase Of Goods/Services - Contractors,IT Operations,Parity Resources Limited,249810,"4,260.60",Information Management Services,Large,Programme Expenditure
UK Statistics Family,Office for National Statistics,08/12/2022,Hosting,CDIO UNGP,Google Cloud EMEA Limited,249813,"36,094.67",Information Management Services,Large,Programme Expenditure
UK Statistics Family,Office for National Statistics,09/12/2022,Telecoms,Covid Infection Survey,Vodafone Corporate Ltd,249938,"32,400.00",Telecommunications,Large,Programme Expenditure
UK Statistics Family,Office for National Statistics,09/12/2022,Telecoms,IT Operations,Vodafone Corporate Ltd,249938,-100.08,Telecommunications,Large,Programme Expenditure
UK Statistics Family,Office for National Statistics,09/12/2022,Surveys,GSS Strategy Delivery,National Institute of Economic and Social Research,249943,"34,350.00",Statistical Services,SME,Programme Expenditure
UK Statistics Family,Office for National Statistics,09/12/2022,End User Software And Hardware,IT Operations,Computacenter (Uk) Limited,249944,"28,800.00",Computers and Peripherals,Large,Programme Expenditure
UK Statistics Family,Office for National Statistics,09/12/2022,Exp - Purchase Of Goods And Services Consultants,Digital Media,Methods Business & Digital Technology Ltd,249953,"93,660.00",Information Management Services,Large,Programme Expenditure
UK Statistics Family,Office for National Statistics,09/12/2022,Exp - Purchase Of Goods/Services - Incentive Payments,Covid Infection Survey,Sodexo Motivation Solutions U.K. ltd,249955,"78,315.00",Survey Response Incentive Vouchers,Large,Programme Expenditure
UK Statistics Family,Office for National Statistics,12/12/2022,Exp - Purchase Of Goods And Services Consultants,2023 CENSUS DATA TRANSFORMATION,The Sensible Code Company,250059,"126,223.20",Statistical Services,SME,Programme Expenditure
UK Statistics Family,Office for National Statistics,12/12/2022,Exp - Purchase Of Goods/Services - Contractors,Consultancy Management,LA FOSSE ASSOCIATES LIMITED,250060,"7,800.00",Information Management Services,Large,Programme Expenditure
UK Statistics Family,Office for National Statistics,12/12/2022,Exp - Purchase Of Goods/Services - Contractors,Data Architecture,LA FOSSE ASSOCIATES LIMITED,250060,"20,520.00",Information Management Services,Large,Programme Expenditure
UK Statistics Family,Office for National Statistics,13/12/2022,FM Contract Payments,Vinci Payments,Vinci Construction UK Limited,250315,"314,873.27",Facilities Mangement Services,Large,Programme Expenditure
UK Statistics Family,Office for National Statistics,13/12/2022,Travel And Subsistence,Corporate Centre,Corporate Travel Management ,250318,"42,285.90",Travel and Accommodation,SME,Programme Expenditure
UK Statistics Family,Office for National Statistics,13/12/2022,Exp - Purchase Of Goods/Services - Contractors,Testing,Certes Computing Ltd,250324,"13,066.08",Information Management Services,SME,Programme Expenditure
UK Statistics Family,Office for National Statistics,13/12/2022,Exp - Purchase Of Goods/Services - Contractors,Programme Support,Certes Computing Ltd,250324,"10,530.00",Information Management Services,SME,Programme Expenditure
UK Statistics Family,Office for National Statistics,13/12/2022,Exp - Purchase Of Goods/Services - Contractors,Security Advisory,Certes Computing Ltd,250324,"18,318.43",Information Management Services,SME,Programme Expenditure
UK Statistics Family,Office for National Statistics,13/12/2022,Exp - Purchase Of Goods/Services - Contractors,Data Architecture,Certes Computing Ltd,250324,"19,404.79",Information Management Services,SME,Programme Expenditure
UK Statistics Family,Office for National Statistics,13/12/2022,Exp - Purchase Of Goods/Services - Contractors,Data Architecture,Certes Computing Ltd,250324,"15,931.87",Information Management Services,SME,Programme Expenditure
UK Statistics Family,Office for National Statistics,13/12/2022,Exp - Purchase Of Goods/Services - Contractors,CLOUD ARCHITECTURE,Certes Computing Ltd,250324,"9,291.35",Information Management Services,SME,Programme Expenditure
UK Statistics Family,Office for National Statistics,13/12/2022,Exp - Purchase Of Goods/Services - Contractors,Strategy And Architecture,Certes Computing Ltd,250324,"9,000.00",Information Management Services,SME,Programme Expenditure
UK Statistics Family,Office for National Statistics,13/12/2022,Exp - Purchase Of Goods/Services - Contractors,IT Applications,Certes Computing Ltd,250324,"16,302.68",Information Management Services,SME,Programme Expenditure
UK Statistics Family,Office for National Statistics,13/12/2022,Exp - Purchase Of Goods/Services - Contractors,DATA ENGINEERING OPERATIONS AND DELIVERY,Certes Computing Ltd,250324,"19,163.76",Information Management Services,SME,Programme Expenditure
UK Statistics Family,Office for National Statistics,13/12/2022,Exp - Purchase Of Goods/Services - Contractors,Digital Media,Malikshaw Interim & Executive,250330,"12,032.58",Information Management Services,SME,Programme Expenditure
UK Statistics Family,Office for National Statistics,13/12/2022,Exp - Short-Term Contract & Agency Staff - Full Cost,Population Statistics Div,Malikshaw Interim & Executive,250330,"3,936.86",Information Management Services,SME,Programme Expenditure
UK Statistics Family,Office for National Statistics,13/12/2022,Exp - Purchase Of Goods/Services - Contractors,Data Architecture,Malikshaw Interim & Executive,250330,"20,865.60",Information Management Services,SME,Programme Expenditure
UK Statistics Family,Office for National Statistics,14/12/2022,Other Goods And Services,Survey Management,Sodexo Motivation Solutions U.K. ltd,250536,"8,876.35",Survey Response Incentive Vouchers,Large,Programme Expenditure
UK Statistics Family,Office for National Statistics,14/12/2022,Other Goods And Services,Best Practice And Impact,Sodexo Motivation Solutions U.K. ltd,250536,350.31,Survey Response Incentive Vouchers,Large,Programme Expenditure
UK Statistics Family,Office for National Statistics,14/12/2022,Other Goods And Services,Survey Management,Sodexo Motivation Solutions U.K. ltd,250536,"36,461.59",Survey Response Incentive Vouchers,Large,Programme Expenditure
UK Statistics Family,Office for National Statistics,14/12/2022,Exp - Purchase Of Goods/Services - IT Contractual Services,Strategy And Architecture,Chaucer Group Ltd,250540,49.68,Information Management Services,SME,Programme Expenditure
UK Statistics Family,Office for National Statistics,14/12/2022,Exp - Purchase Of Goods/Services - Contractor Travel,Strategy And Architecture,Chaucer Group Ltd,250540,"29,890.80",Information Management Services,SME,Programme Expenditure
UK Statistics Family,Office for National Statistics,14/12/2022,Exp - Purchase Of Goods/Services - Contractors,Data Architecture,Talent International,250543,"17,280.00",Information Management Services,SME,Programme Expenditure
UK Statistics Family,Office for National Statistics,14/12/2022,Exp - Purchase Of Goods/Services - Contractors,IT Applications,Talent International,250543,"14,376.00",Information Management Services,SME,Programme Expenditure
UK Statistics Family,Office for National Statistics,15/12/2022,Exp - Purchase Of Goods/Services - Contractors,INTEGRATED DATA STRATEGY AND DELIVERY,LA FOSSE ASSOCIATES LIMITED,250695,"47,940.00",Information Management Services,Large,Programme Expenditure
UK Statistics Family,Office for National Statistics,15/12/2022,Exp - Purchase Of Goods/Services - Contractors,Strategy And Architecture,LA FOSSE ASSOCIATES LIMITED,250695,26250,Information Management Services,Large,Programme Expenditure
UK Statistics Family,Office for National Statistics,16/12/2022,Buildings Under Construction,Property Newport,Vinci Construction UK Limited,250819,"218,780.00",Facilities Mangement Services,Large,Programme Expenditure
UK Statistics Family,Office for National Statistics,16/12/2022,Buildings Under Construction,Property Titchfield,Vinci Construction UK Limited,250819,"116,673.60",Facilities Mangement Services,Large,Programme Expenditure
UK Statistics Family,Office for National Statistics,16/12/2022,Capital Major Works >25K,Property Titchfield,Vinci Construction UK Limited,250819,"33,600.00",Facilities Mangement Services,Large,Programme Expenditure
UK Statistics Family,Office for National Statistics,16/12/2022,Buildings Under Construction,Property Christchurch,Vinci Construction UK Limited,250819,"218,436.00",Facilities Mangement Services,Large,Programme Expenditure
UK Statistics Family,Office for National Statistics,16/12/2022,Exp - Purchase Of Goods/Services - IT Contractual Services,Digital Publishing,University of Durham,250823,"72,956.80",Statistical Services,Large,Programme Expenditure
UK Statistics Family,Office for National Statistics,16/12/2022,Exp - Purchase Of Goods/Services - Contractors,Security Advisory,Certes Computing Ltd,250829,"21,516.79",Information Management Services,SME,Programme Expenditure
UK Statistics Family,Office for National Statistics,16/12/2022,Exp - Purchase Of Goods/Services - Contractors,Data Architecture,Certes Computing Ltd,250829,"9,180.36",Information Management Services,SME,Programme Expenditure
UK Statistics Family,Office for National Statistics,16/12/2022,Exp - Purchase Of Goods/Services - Contractors,CDIO UNGP,Certes Computing Ltd,250829,"16,248.67",Information Management Services,SME,Programme Expenditure
UK Statistics Family,Office for National Statistics,16/12/2022,Exp - Purchase Of Goods/Services - Contractors,Strategy And Architecture,Certes Computing Ltd,250829,"15,300.00",Information Management Services,SME,Programme Expenditure
UK Statistics Family,Office for National Statistics,16/12/2022,Exp - Purchase Of Goods/Services - Contractors,Testing,La International,250830,"5,094.71",Information Management Services,SME,Programme Expenditure
UK Statistics Family,Office for National Statistics,16/12/2022,Exp - Purchase Of Goods/Services - Contractors,Testing,La International,250830,"3,317.65",Information Management Services,SME,Programme Expenditure
UK Statistics Family,Office for National Statistics,16/12/2022,Exp - Purchase Of Goods/Services - Contractors,Consultancy Management,La International,250830,"3,681.18",Information Management Services,SME,Programme Expenditure
UK Statistics Family,Office for National Statistics,16/12/2022,Exp - Purchase Of Goods/Services - Contractors,Data Architecture,La International,250830,"12,118.38",Information Management Services,SME,Programme Expenditure
UK Statistics Family,Office for National Statistics,16/12/2022,Exp - Purchase Of Goods/Services - Contractors,Data Architecture,La International,250830,"4,281.18",Information Management Services,SME,Programme Expenditure
UK Statistics Family,Office for National Statistics,16/12/2022,Exp - Purchase Of Goods/Services - Contractors,IT Applications,La International,250830,"6,887.96",Information Management Services,SME,Programme Expenditure
UK Statistics Family,Office for National Statistics,16/12/2022,Exp - Purchase Of Goods/Services - Contractors,IT Operations,La International,250830,"24,643.20",Information Management Services,SME,Programme Expenditure
UK Statistics Family,Office for National Statistics,16/12/2022,Marketing & Media,Divisional Management,Ministry of Justice,250831,"55,556.70",Marketing and Media Services,Large,Programme Expenditure
UK Statistics Family,Office for National Statistics,16/12/2022,Exp - Purchase Of Goods/Services - Contractors,Data Architecture,Malikshaw Interim & Executive,250835,"14,644.80",Information Management Services,SME,Programme Expenditure
UK Statistics Family,Office for National Statistics,16/12/2022,Exp - Purchase Of Goods/Services - Contractors,DATA ENGINEERING OPERATIONS AND DELIVERY,Malikshaw Interim & Executive,250835,"19,879.20",Information Management Services,SME,Programme Expenditure
UK Statistics Family,Office for National Statistics,16/12/2022,Exp - Purchase Of Goods/Services - Contractors,DATA ENGINEERING OPERATIONS AND DELIVERY,Malikshaw Interim & Executive,250835,"19,605.60",Information Management Services,SME,Programme Expenditure
UK Statistics Family,Office for National Statistics,16/12/2022,Exp - Purchase Of Goods/Services - Incentive Payments,Covid Infection Survey,Sodexo Motivation Solutions U.K. ltd,250839,"98,218.50",Survey Response Incentive Vouchers,Large,Programme Expenditure
UK Statistics Family,Office for National Statistics,16/12/2022,Exp - Purchase Of Goods/Services - Contractors,Data Capability,Parity Resources Limited,250842,"25,695.97",Information Management Services,Large,Programme Expenditure
UK Statistics Family,Office for National Statistics,16/12/2022,Exp - Short-Term Contract & Agency Staff - Full Cost,Recruitment ,Parity Resources Limited,250842,732.60,Information Management Services,Large,Programme Expenditure
UK Statistics Family,Office for National Statistics,16/12/2022,Exp - Purchase Of Goods/Services - Contractors,Strategy And Architecture,Parity Resources Limited,250842,"4,210.50",Information Management Services,Large,Programme Expenditure
UK Statistics Family,Office for National Statistics,16/12/2022,Exp - Short-Term Contract & Agency Staff - Full Cost,Interviewer Management FiF,Parity Resources Limited,250842,"1,326.00",Information Management Services,Large,Programme Expenditure
UK Statistics Family,Office for National Statistics,16/12/2022,Exp - Purchase Of Goods/Services - IT Contractual Services,Tech Delivery Next Gen IT And Infrastructure,Ceox Services Ltd,250846,"37,456.43",Information Management Services,Large,Programme Expenditure
UK Statistics Family,Office for National Statistics,19/12/2022,Buildings Under Construction,Property Newport,Vinci Construction UK Limited,250974,"209,660.30",Facilities Mangement Services,Large,Programme Expenditure
UK Statistics Family,Office for National Statistics,19/12/2022,Exp - Purchase Of Goods And Services Consultants,2023 CENSUS DATA TRANSFORMATION,University of Salford,250977,"149,999.28",Digitisation Services,Large,Programme Expenditure
UK Statistics Family,Office for National Statistics,19/12/2022,Surveys,Business Outputs And Developments,Iff Research,250979,"59,839.72",Statistical Services,Large,Programme Expenditure
UK Statistics Family,Office for National Statistics,19/12/2022,Surveys,ECONOMIC CHANGE,Bureau Van Dijk Electronic Publishing,250981,"70,500.00",Data Acquisition,SME,Programme Expenditure
UK Statistics Family,Office for National Statistics,19/12/2022,Exp - Purchase Of Goods/Services - Incentive Payments,Survey Management,Sodexo Motivation Solutions U.K. ltd,250985,"2,417.92",Survey Response Incentive Vouchers,Large,Programme Expenditure
UK Statistics Family,Office for National Statistics,19/12/2022,Exp - Purchase Of Goods/Services - Incentive Payments,Survey Management,Sodexo Motivation Solutions U.K. ltd,250985,"24,759.44",Survey Response Incentive Vouchers,Large,Programme Expenditure
UK Statistics Family,Office for National Statistics,19/12/2022,Exp - Purchase Of Goods/Services - Incentive Payments,Survey Management,Sodexo Motivation Solutions U.K. ltd,250985,"136,418.35",Survey Response Incentive Vouchers,Large,Programme Expenditure
UK Statistics Family,Office for National Statistics,19/12/2022,Exp - Purchase Of Goods/Services - Incentive Payments,Survey Management,Sodexo Motivation Solutions U.K. ltd,250985,"12,031.41",Survey Response Incentive Vouchers,Large,Programme Expenditure
UK Statistics Family,Office for National Statistics,19/12/2022,Exp - Purchase Of Goods/Services - Incentive Payments,Survey Management,Sodexo Motivation Solutions U.K. ltd,250985,"10,081.20",Survey Response Incentive Vouchers,Large,Programme Expenditure
UK Statistics Family,Office for National Statistics,19/12/2022,Exp - Purchase Of Goods/Services - Incentive Payments,Survey Management,Sodexo Motivation Solutions U.K. ltd,250985,"12,248.36",Survey Response Incentive Vouchers,Large,Programme Expenditure
UK Statistics Family,Office for National Statistics,19/12/2022,Exp - Purchase Of Goods/Services - Incentive Payments,Interviewer Support,Sodexo Motivation Solutions U.K. ltd,250985,"1,406.17",Survey Response Incentive Vouchers,Large,Programme Expenditure
UK Statistics Family,Office for National Statistics,19/12/2022,Other Goods And Services,Survey Management,Sodexo Motivation Solutions U.K. ltd,250985,"3,858.71",Survey Response Incentive Vouchers,Large,Programme Expenditure
UK Statistics Family,Office for National Statistics,19/12/2022,Exp - Purchase Of Goods/Services - Contractors,Data Architecture,LA FOSSE ASSOCIATES LIMITED,250986,"32,400.00",Information Management Services,Large,Programme Expenditure
UK Statistics Family,Office for National Statistics,19/12/2022,Exp - Purchase Of Goods And Services Consultants,Business Architecture Transformation And Statistical Strategy,Matt Hamnet & Associates Ltd,250991,"108,042.00",Consultancy,SME,Programme Expenditure
UK Statistics Family,Office for National Statistics,20/12/2022,Buildings Under Construction,Property Newport,Vinci Construction UK Limited,251248,"42,000.00",Facilities Mangement Services,Large,Programme Expenditure
UK Statistics Family,Office for National Statistics,20/12/2022,Capital Major Works >25K,Property Newport,Vinci Construction UK Limited,251248,"115,200.00",Facilities Mangement Services,Large,Programme Expenditure
UK Statistics Family,Office for National Statistics,20/12/2022,Capital Major Works >25K,Property Titchfield,Vinci Construction UK Limited,251248,"75,600.00",Facilities Mangement Services,Large,Programme Expenditure
UK Statistics Family,Office for National Statistics,20/12/2022,Capital Major Works >25K,Property Titchfield,Vinci Construction UK Limited,251248,"35,316.00",Facilities Mangement Services,Large,Programme Expenditure
UK Statistics Family,Office for National Statistics,20/12/2022,Buildings Under Construction,Property Christchurch,Vinci Construction UK Limited,251248,"26,460.00",Facilities Mangement Services,Large,Programme Expenditure
UK Statistics Family,Office for National Statistics,20/12/2022,Specialist User Software And Hardware,CDIO UNGP,Computacenter (Uk) Limited,251259,"40,716.00",Software Licenses,Large,Programme Expenditure
UK Statistics Family,Office for National Statistics,20/12/2022,Other Goods And Services,Productivity Research And Professional Development,The Alan Turing Institute,251262,"65,818.50",Joint Project Funding,SME,Programme Expenditure
UK Statistics Family,Office for National Statistics,20/12/2022,Exp - Purchase Of Goods/Services - IT Contractual Services,CDIO UNGP,CTS (Cloud Technology Solutions Ltd),251264,"256,290.72",Information Management Services,Large,Programme Expenditure
UK Statistics Family,Office for National Statistics,20/12/2022,Exp - Purchase Of Goods And Services Consultants,Digital Media,Methods Business & Digital Technology Ltd,251267,"234,000.00",Information Management Services,Large,Programme Expenditure
UK Statistics Family,Office for National Statistics,20/12/2022,Exp - Purchase Of Goods And Services Consultants,Digital Media,Methods Business & Digital Technology Ltd,251267,"1,044,000.00",Information Management Services,Large,Programme Expenditure
UK Statistics Family,Office for National Statistics,20/12/2022,Exp - Purchase Of Goods/Services - IT Contractual Services,Strategy And Architecture,Methods Business & Digital Technology Ltd,251267,-714.00,Information Management Services,Large,Programme Expenditure
UK Statistics Family,Office for National Statistics,20/12/2022,Telecoms,IT Operations,Cdw Limited,251270,"35,536.80",Information Management Services,Large,Programme Expenditure
UK Statistics Family,Office for National Statistics,20/12/2022,Rent Payable,Property Titchfield,Eaton Limited,251272,"29,623.20",Rental Charges,SME,Programme Expenditure
UK Statistics Family,Office for National Statistics,20/12/2022,Telecoms,IT Operations,Freedom Communications (UK) Ltd,251273,"32,882.71",Information Management Services,Large,Programme Expenditure
UK Statistics Family,Office for National Statistics,20/12/2022,Specialist User Software And Hardware,CDIO UNGP,Insight Direct,251276,"44,089.68",Software Licenses,Large,Programme Expenditure
UK Statistics Family,Office for National Statistics,21/12/2022,Exp - Purchase Of Goods/Services - IT Contractual Services,CDIO UNGP,Microsoft Limited,251450,"150,246.00",Information Management Services,Large,Programme Expenditure
UK Statistics Family,Office for National Statistics,21/12/2022,Surveys,Crime Statistics,Kantar Public UK Ltd.,251463,346011.25,Statistical Services,SME,Programme Expenditure
UK Statistics Family,Office for National Statistics,21/12/2022,Surveys,Crime Statistics,Kantar Public UK Ltd.,251463,"395,038.25",Statistical Services,SME,Programme Expenditure
UK Statistics Family,Office for National Statistics,21/12/2022,Exp - Purchase Of Goods/Services - Contractors,Programme Support,Parity Resources Limited,251468,"3,600.00",Information Management Services,Large,Programme Expenditure
UK Statistics Family,Office for National Statistics,21/12/2022,Exp - Short-Term Contract & Agency Staff - Full Cost,Recruitment ,Parity Resources Limited,251468,"1,509.60",Information Management Services,Large,Programme Expenditure
UK Statistics Family,Office for National Statistics,21/12/2022,Exp - Purchase Of Goods/Services - Contractors,Security Advisory,Parity Resources Limited,251468,"4,510.50",Information Management Services,Large,Programme Expenditure
UK Statistics Family,Office for National Statistics,21/12/2022,Exp - Purchase Of Goods/Services - Contractors,BUSINESS STRATEGY PERFORMANCE AND PMO,Parity Resources Limited,251468,"15,300.00",Information Management Services,Large,Programme Expenditure
UK Statistics Family,Office for National Statistics,21/12/2022,Exp - Purchase Of Goods/Services - Contractors,Data Architecture,Parity Resources Limited,251468,"8,658.90",Information Management Services,Large,Programme Expenditure
UK Statistics Family,Office for National Statistics,21/12/2022,Exp - Purchase Of Goods/Services - Contractors,Strategy And Architecture,Parity Resources Limited,251468,"15,578.87",Information Management Services,Large,Programme Expenditure
UK Statistics Family,Office for National Statistics,21/12/2022,Exp - Purchase Of Goods/Services - Contractors,Tech Delivery Next Gen IT And Infrastructure,Parity Resources Limited,251468,"9,811.20",Information Management Services,Large,Programme Expenditure
UK Statistics Family,Office for National Statistics,21/12/2022,Exp - Purchase Of Goods/Services - Contractors,IT Operations,Parity Resources Limited,251468,"7,101.00",Information Management Services,Large,Programme Expenditure
UK Statistics Family,Office for National Statistics,21/12/2022,End User Software And Hardware,IT Operations,Boxxe Ltd,251469,"49,132.88",Software Licenses,SME,Programme Expenditure
UK Statistics Family,Office for National Statistics,21/12/2022,Specialist User Software And Hardware,IT Operations,Boxxe Ltd,251469,"46,800.00",Software Licenses,SME,Programme Expenditure
UK Statistics Family,Office for National Statistics,21/12/2022,Exp - Short-Term Contract & Agency Staff - Full Cost,REPROGRAPHICS,Talent International,251470,"2,607.07",Information Management Services,SME,Programme Expenditure
UK Statistics Family,Office for National Statistics,21/12/2022,Exp - Purchase Of Goods/Services - Contractors,INTEGRATED DATA STRATEGY AND DELIVERY,Talent International,251470,"12,420.00",Information Management Services,SME,Programme Expenditure
UK Statistics Family,Office for National Statistics,21/12/2022,Exp - Purchase Of Goods/Services - Contractors,IT Operations,Talent International,251470,"15,600.00",Information Management Services,SME,Programme Expenditure
UK Statistics Family,Office for National Statistics,21/12/2022,Exp - Purchase Of Goods/Services - Contractors,IT Operations,Talent International,251470,"16,800.00",Information Management Services,SME,Programme Expenditure
UK Statistics Family,Office for National Statistics,21/12/2022,Exp - Purchase Of Goods/Services - IT Contractual Services,Finance,iCoTech Services,251471,"9,474.00",Information Management Services,SME,Programme Expenditure
UK Statistics Family,Office for National Statistics,21/12/2022,Exp - Purchase Of Goods/Services - IT Contractual Services,Finance,iCoTech Services,251471,"26,393.51",Information Management Services,SME,Programme Expenditure
UK Statistics Family,Office for National Statistics,21/12/2022,Accommodation & Building Management,Property Services,Cadline Ltd,251475,"25,200.00",Software Licenses,SME,Programme Expenditure
UK Statistics Family,Office for National Statistics,02/12/2022,Exp - Purchase Of Goods/Services - Incentive Payments,Covid Infection Survey,Sodexo Motivation Solutions U.K. ltd,30003873,"1,215,069.23",Survey Response Incentive Vouchers,Large,Programme Expenditure
UK Statistics Family,Office for National Statistics,05/12/2022,Specialist User Software And Hardware,CDIO UNGP,Cloudflare ,30003876,"157,563.86",Information Management Services,Large,Programme Expenditure
UK Statistics Family,Office for National Statistics,07/12/2022,Exp - Purchase Of Goods/Services - Incentive Payments,Covid Infection Survey,Sodexo Motivation Solutions U.K. ltd,30003880,1024775.19,Survey Response Incentive Vouchers,Large,Programme Expenditure
UK Statistics Family,Office for National Statistics,15/12/2022,Exp - Purchase Of Goods/Services - Incentive Payments,Covid Infection Survey,Sodexo Motivation Solutions U.K. ltd,30003888,"1,158,528.82",Survey Response Incentive Vouchers,Large,Programme Expenditure
UK Statistics Family,Office for National Statistics,15/12/2022,Stationery,Lodgecard,Royal Bank of Scotland,30003889,"5,128.79",Multiple Procurement Card Purchases  - Stationery ,Large,Programme Expenditure
UK Statistics Family,Office for National Statistics,15/12/2022,Other Goods And Services,GPC,Royal Bank of Scotland,30003889,"90,674.36",Multiple Procurement Card Purchases - other goods/services  ,Large,Programme Expenditure
UK Statistics Family,Office for National Statistics,15/12/2022,Travel And Subsistence,Car Hire,Royal Bank of Scotland,30003889,"24,829.59",Multiple Procurement Card Purchases - Vehicle Hire  ,Large,Programme Expenditure
UK Statistics Family,Office for National Statistics,19/12/2022,Electricity,Property Services,Edf Energy,30003890,"29,326.32",Utility Charges,Large,Programme Expenditure
UK Statistics Family,Office for National Statistics,19/12/2022,Surveys,Covid Infection Survey,IQVIA Limited,30003892,"6,000,000.00",Statistical Services,Large,Programme Expenditure
UK Statistics Family,Office for National Statistics,22/12/2022,Exp - Purchase Of Goods/Services - Incentive Payments,Covid Infection Survey,Sodexo Motivation Solutions U.K. ltd,30003905,"1,179,591.26",Survey Response Incentive Vouchers,Large,Programme Expenditure
UK Statistics Family,Office for National Statistics,23/12/2022,Surveys,Covid Infection Survey,IQVIA Limited,30003910,"1,335,024.43",Statistical Services,Large,Programme Expenditure
UK Statistics Family,Office for National Statistics,23/12/2022,Surveys,Covid Infection Survey,IQVIA Limited,30003911,"210,000.00",Statistical Services,Large,Programme Expenditure
UK Statistics Family,Office for National Statistics,30/12/2022,Exp - Purchase Of Goods And Services Consultants,Digital Media,Methods Business & Digital Technology Ltd,30003916,"38,257.50",Information Management Services,Large,Programme Expenditure
UK Statistics Family,Office for National Statistics,30/12/2022,Exp - Purchase Of Goods And Services Consultants,Digital Media,Methods Business & Digital Technology Ltd,30003916,"311,594.26",Information Management Services,Large,Programme Expenditure
UK Statistics Family,Office for National Statistics,30/12/2022,Postage,REPROGRAPHICS,Pitney Bowes Ltd,30003917,"188,160.70",Postage Services,Large,Programme Expenditure
UK Statistics Family,Office for National Statistics,30/12/2022,Exp - Purchase Of Goods/Services - Incentive Payments,Covid Infection Survey,Sodexo Motivation Solutions U.K. ltd,30003918,"102,476.10",Survey Response Incentive Vouchers,Large,Programme Expenditure
UK Statistics Family,Office for National Statistics,30/12/2022,Exp - Purchase Of Goods/Services - IT Contractual Services,Digital Publishing,Swirrl It Ltd,30003919,"71,026.20",Information Management Services,SME,Programme Expenditure
UK Statistics Family,Office for National Statistics,19/12/2022,Specialist User Software And Hardware,Security Advisory,GitGuardian SAS,90001090,"66,997.85",Software Licenses,Large,Programme Expenditure
,,,,,,,"23,821,738.29",,,
